[Event "*** Titled Tuesday Blitz"]
[Site "Chess.com"]
[Date "2018.10.02"]
[Round "1"]
[White "Keranke"]
[Black "LucaBrasi1968"]
[Result "1-0"]
[WhiteElo "2779"]
[BlackElo "2426"]
[TimeControl "180+2"]
[EndTime "13:07:39 PDT"]
[Termination "Keranke won by resignation"]

1. d4 {[%clk 0:03:01.9]} 1... f5 {[%clk 0:02:56]} 2. Bg5 {[%clk 0:03:01.8]} 2...
g6 {[%clk 0:02:56.1]} 3. e4 {[%clk 0:03:02.3]} 3... fxe4 {[%clk 0:02:56.7]} 4.
Nc3 {[%clk 0:03:03.6]} 4... Bg7 {[%clk 0:02:56]} 5. Nxe4 {[%clk 0:03:04.1]} 5...
Nf6 {[%clk 0:02:57.2]} 6. Ng3 {[%clk 0:03:02.7]} 6... c5 {[%clk 0:02:55.7]} 7.
dxc5 {[%clk 0:03:01.8]} 7... Qa5+ {[%clk 0:02:55.5]} 8. Qd2 {[%clk 0:03:02.5]}
8... Qxc5 {[%clk 0:02:54.8]} 9. Nf3 {[%clk 0:03:00.5]} 9... Nc6 {[%clk 0:02:55]}
10. Bd3 {[%clk 0:02:58.2]} 10... O-O {[%clk 0:02:47.1]} 11. c3 {[%clk
0:02:55.1]} 11... d6 {[%clk 0:02:41.5]} 12. h3 {[%clk 0:02:50.6]} 12... Be6
{[%clk 0:02:32.5]} 13. O-O {[%clk 0:02:46.6]} 13... Bd5 {[%clk 0:02:30.3]} 14.
Bxf6 {[%clk 0:02:30.1]} 14... Bxf6 {[%clk 0:02:13.7]} 15. Ne4 {[%clk 0:02:31.1]}
15... Bxe4 {[%clk 0:02:12.6]} 16. Bxe4 {[%clk 0:02:33]} 16... e6 {[%clk
0:02:06]} 17. Rfe1 {[%clk 0:02:30.3]} 17... d5 {[%clk 0:02:04.4]} 18. Bc2 {[%clk
0:02:30.6]} 18... Rae8 {[%clk 0:02:05.1]} 19. Re2 {[%clk 0:02:24.1]} 19... Re7
{[%clk 0:01:38.2]} 20. Rae1 {[%clk 0:02:24.5]} 20... Rfe8 {[%clk 0:01:39.1]} 21.
Qh6 {[%clk 0:02:23.7]} 21... Bg7 {[%clk 0:01:38.8]} 22. Qh4 {[%clk 0:02:24.4]}
22... Qd6 {[%clk 0:01:33.7]} 23. Ng5 {[%clk 0:02:06.2]} 23... Bf6 {[%clk
0:01:31]} 24. Qg4 {[%clk 0:02:05.8]} 24... Kg7 {[%clk 0:01:25.3]} 25. Nxe6+
{[%clk 0:02:00.4]} 25... Kg8 {[%clk 0:01:26.2]} 26. Nf4 {[%clk 0:01:48.1]} 26...
d4 {[%clk 0:01:23.5]} 27. Nd5 {[%clk 0:01:27.3]} 27... Rxe2 {[%clk 0:01:22.3]}
28. Rxe2 {[%clk 0:01:23.7]} 28... Rxe2 {[%clk 0:01:21.5]} 29. Qxe2 {[%clk
0:01:25.6]} 29... dxc3 {[%clk 0:01:16.1]} 30. bxc3 {[%clk 0:01:27.5]} 30... Kg7
{[%clk 0:01:12.9]} 31. Nxf6 {[%clk 0:01:27.3]} 31... Qxf6 {[%clk 0:01:14]} 32.
Qe3 {[%clk 0:01:28.2]} 32... Qd6 {[%clk 0:01:03.4]} 33. Be4 {[%clk 0:01:25.7]}
33... b6 {[%clk 0:00:48.2]} 34. g3 {[%clk 0:01:13.2]} 34... Ne5 {[%clk
0:00:42.4]} 35. Kg2 {[%clk 0:01:10.6]} 35... a5 {[%clk 0:00:34.8]} 36. h4 {[%clk
0:01:11.1]} 36... Ng4 {[%clk 0:00:31.9]} 37. Qg5 {[%clk 0:01:06.6]} 37... Nf6
{[%clk 0:00:29.2]} 38. Bf3 {[%clk 0:01:07.1]} 38... Qa3 {[%clk 0:00:28]} 39. Qe5
{[%clk 0:01:01.7]} 39... Qxa2 {[%clk 0:00:28.6]} 40. g4 {[%clk 0:01:02.7]} 40...
Qf7 {[%clk 0:00:28.9]} 41. g5 {[%clk 0:01:03.6]} 1-0

[Event "*** Titled Tuesday Blitz"]
[Site "Chess.com"]
[Date "2018.10.02"]
[Round "1"]
[White "Ziyamammadov"]
[Black "grzechu96"]
[Result "0-1"]
[WhiteElo "1915"]
[BlackElo "2505"]
[TimeControl "180+2"]
[EndTime "13:07:45 PDT"]
[Termination "grzechu96 won by resignation"]

1. e4 {[%clk 0:03:01.9]} 1... e5 {[%clk 0:03:00.4]} 2. Nf3 {[%clk 0:03:02.7]}
2... Nc6 {[%clk 0:03:01.5]} 3. d4 {[%clk 0:03:02.1]} 3... exd4 {[%clk
0:03:02.2]} 4. Nxd4 {[%clk 0:03:04]} 4... Nf6 {[%clk 0:03:02.8]} 5. Nc3 {[%clk
0:03:04.4]} 5... Bb4 {[%clk 0:02:58.6]} 6. Nxc6 {[%clk 0:03:01.7]} 6... bxc6
{[%clk 0:03:00.5]} 7. Bc4 {[%clk 0:02:24.8]} 7... Nxe4 {[%clk 0:02:32.4]} 8. O-O
{[%clk 0:02:02.4]} 8... Bxc3 {[%clk 0:02:05.1]} 9. bxc3 {[%clk 0:02:00.2]} 9...
O-O {[%clk 0:02:04.4]} 10. Qf3 {[%clk 0:02:00.2]} 10... d5 {[%clk 0:02:05.1]}
11. Bd3 {[%clk 0:01:48.5]} 11... Re8 {[%clk 0:02:03.8]} 12. Be3 {[%clk
0:01:40.4]} 12... Qd6 {[%clk 0:01:41.5]} 13. c4 {[%clk 0:01:29]} 13... a5 {[%clk
0:01:04.2]} 14. Bxe4 {[%clk 0:01:07.8]} 14... dxe4 {[%clk 0:00:43.6]} 15. Qe2
{[%clk 0:01:00.7]} 15... Ba6 {[%clk 0:00:43.7]} 16. Qg4 {[%clk 0:00:28.6]} 16...
Bxc4 {[%clk 0:00:39.8]} 17. Rfd1 {[%clk 0:00:28.3]} 17... Qe6 {[%clk 0:00:41.1]}
18. Qg3 {[%clk 0:00:29.2]} 18... Bxa2 {[%clk 0:00:31]} 19. Qxc7 {[%clk
0:00:27.5]} 19... a4 {[%clk 0:00:26.8]} 20. Rd6 {[%clk 0:00:22.8]} 20... Rec8
{[%clk 0:00:18]} 21. Rxe6 {[%clk 0:00:12.3]} 21... Rxc7 {[%clk 0:00:19.2]} 22.
Rxe4 {[%clk 0:00:13.3]} 22... Rd7 {[%clk 0:00:18]} 23. Rd4 {[%clk 0:00:11.9]}
23... Rxd4 {[%clk 0:00:18.9]} 24. Bxd4 {[%clk 0:00:13.5]} 24... Bc4 {[%clk
0:00:19.4]} 25. c3 {[%clk 0:00:14.9]} 25... a3 {[%clk 0:00:20.7]} 26. Bc5 {[%clk
0:00:15.8]} 26... a2 {[%clk 0:00:22.2]} 27. f3 {[%clk 0:00:17.3]} 27... Rb8
{[%clk 0:00:23.5]} 28. Bb4 {[%clk 0:00:18.2]} 28... c5 {[%clk 0:00:24.9]} 0-1

[Event "*** Titled Tuesday Blitz"]
[Site "Chess.com"]
[Date "2018.10.02"]
[Round "1"]
[White "Bryakin_Mikhail"]
[Black "djano"]
[Result "1-0"]
[WhiteElo "2679"]
[BlackElo "2359"]
[TimeControl "180+2"]
[EndTime "13:07:52 PDT"]
[Termination "Bryakin_Mikhail won by resignation"]

1. d4 {[%clk 0:02:59.7]} 1... Nf6 {[%clk 0:02:59.7]} 2. c4 {[%clk 0:02:59.2]}
2... g6 {[%clk 0:02:59.9]} 3. Nc3 {[%clk 0:02:58.8]} 3... d5 {[%clk 0:03:01.2]}
4. Bg5 {[%clk 0:02:59.7]} 4... c5 {[%clk 0:02:56.3]} 5. Bxf6 {[%clk 0:02:57.6]}
5... exf6 {[%clk 0:02:56.3]} 6. cxd5 {[%clk 0:02:58.7]} 6... cxd4 {[%clk
0:02:46.3]} 7. Qxd4 {[%clk 0:02:57.4]} 7... Bg7 {[%clk 0:02:47.5]} 8. Nf3 {[%clk
0:02:48.8]} 8... O-O {[%clk 0:02:48.1]} 9. e4 {[%clk 0:02:49.7]} 9... f5 {[%clk
0:02:45.1]} 10. e5 {[%clk 0:02:44]} 10... Nd7 {[%clk 0:02:36.6]} 11. Bb5 {[%clk
0:02:37.1]} 11... Qb6 {[%clk 0:01:37.1]} 12. Bxd7 {[%clk 0:02:13.5]} 12... Bxd7
{[%clk 0:01:35.1]} 13. Qxb6 {[%clk 0:02:06.8]} 13... axb6 {[%clk 0:01:37]} 14.
O-O-O {[%clk 0:02:05.1]} 14... Rfe8 {[%clk 0:01:34.9]} 15. Rhe1 {[%clk
0:02:05.3]} 15... b5 {[%clk 0:01:34.5]} 16. a3 {[%clk 0:02:02.1]} 16... g5
{[%clk 0:01:20]} 17. e6 {[%clk 0:01:35.4]} 17... fxe6 {[%clk 0:01:17.2]} 18. Ne5
{[%clk 0:01:33.6]} 18... Bxe5 {[%clk 0:01:07]} 19. Rxe5 {[%clk 0:01:35.5]} 19...
exd5 {[%clk 0:01:02]} 20. Rexd5 {[%clk 0:01:35.4]} 20... b4 {[%clk 0:00:52.2]}
21. axb4 {[%clk 0:01:33]} 21... Be6 {[%clk 0:00:49.4]} 22. Rc5 {[%clk
0:01:22.5]} 22... Bb3 {[%clk 0:00:47]} 23. Rd7 {[%clk 0:01:05.5]} 23... Ra1+
{[%clk 0:00:24.9]} 24. Kd2 {[%clk 0:01:05.7]} 24... Rf1 {[%clk 0:00:19.1]} 25.
Rxf5 {[%clk 0:01:02.2]} 25... Be6 {[%clk 0:00:20]} 26. Rxg5+ {[%clk 0:01:00.7]}
26... Kh8 {[%clk 0:00:20.5]} 27. Rxb7 {[%clk 0:00:51.5]} 27... Rxf2+ {[%clk
0:00:21.7]} 28. Kd3 {[%clk 0:00:53.1]} 28... Bb3 {[%clk 0:00:18.2]} 29. Rgg7
{[%clk 0:00:42.5]} 29... Rd8+ {[%clk 0:00:12.1]} 30. Ke3 {[%clk 0:00:43.3]}
30... Rxb2 {[%clk 0:00:11.4]} 31. Rxh7+ {[%clk 0:00:44.4]} 31... Kg8 {[%clk
0:00:12.8]} 32. Ne4 {[%clk 0:00:45.7]} 32... Bd5 {[%clk 0:00:12.2]} 33. Nf6+
{[%clk 0:00:42.8]} 33... Kf8 {[%clk 0:00:13.5]} 34. Rh8+ {[%clk 0:00:44.4]} 1-0

[Event "*** Titled Tuesday Blitz"]
[Site "Chess.com"]
[Date "2018.10.02"]
[Round "1"]
[White "Saitama_Hero"]
[Black "kasparik_garik"]
[Result "0-1"]
[WhiteElo "2221"]
[BlackElo "2560"]
[TimeControl "180+2"]
[EndTime "13:07:52 PDT"]
[Termination "kasparik_garik won by resignation"]

1. d4 {[%clk 0:02:55.1]} 1... Nf6 {[%clk 0:03:00.4]} 2. c4 {[%clk 0:02:54.8]}
2... g6 {[%clk 0:03:01.4]} 3. Nc3 {[%clk 0:02:56.2]} 3... Bg7 {[%clk 0:03:03.2]}
4. e4 {[%clk 0:02:56.9]} 4... O-O {[%clk 0:03:05.1]} 5. f4 {[%clk 0:02:57.6]}
5... c5 {[%clk 0:03:05.4]} 6. d5 {[%clk 0:02:57.3]} 6... d6 {[%clk 0:03:06.2]}
7. Nf3 {[%clk 0:02:58.5]} 7... Bg4 {[%clk 0:03:04.9]} 8. Bd3 {[%clk 0:02:52.9]}
8... Nbd7 {[%clk 0:03:05.3]} 9. h3 {[%clk 0:02:54.2]} 9... Bxf3 {[%clk
0:03:05.9]} 10. Qxf3 {[%clk 0:02:56.1]} 10... e6 {[%clk 0:03:06.4]} 11. O-O
{[%clk 0:02:53.5]} 11... exd5 {[%clk 0:03:07]} 12. cxd5 {[%clk 0:02:54.6]} 12...
a6 {[%clk 0:03:08.1]} 13. a4 {[%clk 0:02:54.2]} 13... Re8 {[%clk 0:03:08.9]} 14.
Be3 {[%clk 0:02:53.6]} 14... Rc8 {[%clk 0:03:09.4]} 15. Kh1 {[%clk 0:02:54.6]}
15... c4 {[%clk 0:03:07.4]} 16. Bc2 {[%clk 0:02:55]} 16... Nc5 {[%clk
0:03:08.4]} 17. Bd4 {[%clk 0:02:48]} 17... Nfd7 {[%clk 0:03:06.4]} 18. Bxg7
{[%clk 0:02:46.4]} 18... Kxg7 {[%clk 0:03:07.3]} 19. Rae1 {[%clk 0:02:26.4]}
19... f6 {[%clk 0:03:00.8]} 20. h4 {[%clk 0:02:04.6]} 20... Qb6 {[%clk
0:02:56.6]} 21. e5 {[%clk 0:01:37.4]} 21... dxe5 {[%clk 0:02:55.2]} 22. f5
{[%clk 0:01:37.1]} 22... Qxb2 {[%clk 0:02:48.1]} 23. Re2 {[%clk 0:01:34.7]}
23... Qa3 {[%clk 0:02:29.2]} 24. fxg6 {[%clk 0:01:31.3]} 24... e4 {[%clk
0:02:25.2]} 25. Qg4 {[%clk 0:00:56]} 25... Qxc3 {[%clk 0:02:21.9]} 26. gxh7+
{[%clk 0:00:55]} 26... Kh8 {[%clk 0:02:22.5]} 27. Bxe4 {[%clk 0:00:38.4]} 27...
Nxe4 {[%clk 0:01:54.4]} 28. Rxe4 {[%clk 0:00:40.3]} 28... Rxe4 {[%clk
0:01:34.6]} 29. Qxe4 {[%clk 0:00:42.2]} 29... Qd3 {[%clk 0:01:26.2]} 30. Qf4
{[%clk 0:00:28.1]} 30... c3 {[%clk 0:01:24.1]} 31. Rf3 {[%clk 0:00:23.9]} 31...
c2 {[%clk 0:01:10.2]} 32. Rxd3 {[%clk 0:00:20.2]} 32... c1=Q+ {[%clk 0:01:11]}
33. Qxc1 {[%clk 0:00:21.8]} 33... Rxc1+ {[%clk 0:01:11.6]} 34. Kh2 {[%clk
0:00:23.7]} 34... Rc4 {[%clk 0:01:09.9]} 35. Re3 {[%clk 0:00:21.7]} 35... Ne5
{[%clk 0:01:10.7]} 36. Kh3 {[%clk 0:00:18.5]} 36... Rxa4 {[%clk 0:01:10.8]} 37.
d6 {[%clk 0:00:18.3]} 37... Rd4 {[%clk 0:01:11.4]} 38. Rb3 {[%clk 0:00:19.2]}
38... b5 {[%clk 0:01:12.1]} 39. Rc3 {[%clk 0:00:20.5]} 39... Kxh7 {[%clk
0:01:04.3]} 40. Rc7+ {[%clk 0:00:22.4]} 40... Kg6 {[%clk 0:01:04.9]} 0-1

[Event "*** Titled Tuesday Blitz"]
[Site "Chess.com"]
[Date "2018.10.02"]
[Round "1"]
[White "gmcorrales"]
[Black "BasilSmash"]
[Result "0-1"]
[WhiteElo "2704"]
[BlackElo "2404"]
[TimeControl "180+2"]
[EndTime "13:07:59 PDT"]
[Termination "BasilSmash won by resignation"]

1. e4 {[%clk 0:02:48.7]} 1... c6 {[%clk 0:03:00]} 2. d4 {[%clk 0:02:43.1]} 2...
d5 {[%clk 0:03:01.9]} 3. e5 {[%clk 0:02:25.8]} 3... Bf5 {[%clk 0:03:01.2]} 4. h4
{[%clk 0:01:54.8]} 4... h5 {[%clk 0:03:00.1]} 5. Bd3 {[%clk 0:01:52.8]} 5...
Bxd3 {[%clk 0:03:00]} 6. Qxd3 {[%clk 0:01:54.7]} 6... Qa5+ {[%clk 0:03:00.6]} 7.
Nd2 {[%clk 0:01:52.9]} 7... e6 {[%clk 0:02:49.1]} 8. Nf3 {[%clk 0:01:51.6]} 8...
Qa6 {[%clk 0:02:49.6]} 9. c4 {[%clk 0:01:52]} 9... Ne7 {[%clk 0:02:48.5]} 10.
O-O {[%clk 0:01:52.2]} 10... Nf5 {[%clk 0:02:49.1]} 11. b3 {[%clk 0:01:52.2]}
11... Be7 {[%clk 0:02:44.2]} 12. g3 {[%clk 0:01:52.8]} 12... O-O {[%clk
0:02:38.5]} 13. Kg2 {[%clk 0:01:53.6]} 13... c5 {[%clk 0:02:32.8]} 14. Bb2
{[%clk 0:01:48.1]} 14... Nc6 {[%clk 0:02:31.2]} 15. dxc5 {[%clk 0:01:46.2]}
15... Bxc5 {[%clk 0:02:22.6]} 16. a3 {[%clk 0:01:45.1]} 16... Rfd8 {[%clk
0:02:20.4]} 17. b4 {[%clk 0:01:45.3]} 17... dxc4 {[%clk 0:02:20.5]} 18. Qxc4
{[%clk 0:01:47.2]} 18... Qxc4 {[%clk 0:02:19.4]} 19. Nxc4 {[%clk 0:01:49.1]}
19... Bf8 {[%clk 0:02:13]} 20. Rac1 {[%clk 0:01:44.7]} 20... Rac8 {[%clk
0:02:08.3]} 21. Rc2 {[%clk 0:01:29.9]} 21... b5 {[%clk 0:01:58.2]} 22. Ncd2
{[%clk 0:01:29.4]} 22... Nce7 {[%clk 0:01:32.6]} 23. Rfc1 {[%clk 0:01:21.5]}
23... Rxc2 {[%clk 0:01:32.4]} 24. Rxc2 {[%clk 0:01:23.4]} 24... Nd5 {[%clk
0:01:33.4]} 25. Rc6 {[%clk 0:01:18.5]} 25... Nb6 {[%clk 0:01:19.6]} 26. Kf1
{[%clk 0:01:07.2]} 26... Na4 {[%clk 0:01:18.5]} 27. Bc1 {[%clk 0:01:01.8]} 27...
Nb6 {[%clk 0:01:14.3]} 28. Ke2 {[%clk 0:00:58.5]} 28... Rc8 {[%clk 0:01:11]} 29.
Rxc8 {[%clk 0:00:57.6]} 29... Nxc8 {[%clk 0:01:12.9]} 30. Nd4 {[%clk 0:00:59]}
30... Nxd4+ {[%clk 0:01:13.1]} 31. Kd3 {[%clk 0:00:59.4]} 31... Nc6 {[%clk
0:01:12.5]} 32. f4 {[%clk 0:00:57.1]} 32... g6 {[%clk 0:01:13.2]} 33. Ne4 {[%clk
0:00:57.6]} 33... Be7 {[%clk 0:01:12.4]} 34. Be3 {[%clk 0:00:58.1]} 34... Kf8
{[%clk 0:01:10.5]} 35. Nc3 {[%clk 0:00:58.8]} 35... a6 {[%clk 0:01:10.2]} 36.
Ne4 {[%clk 0:01:00.1]} 36... Ke8 {[%clk 0:01:10.6]} 37. Bc5 {[%clk 0:01:01.7]}
37... Bxc5 {[%clk 0:01:08.6]} 38. Nxc5 {[%clk 0:01:03.6]} 38... a5 {[%clk
0:01:08.6]} 39. bxa5 {[%clk 0:01:03.6]} 39... Nxa5 {[%clk 0:01:10.5]} 40. Kc3
{[%clk 0:01:04.7]} 40... Nc6 {[%clk 0:01:11.1]} 41. Ne4 {[%clk 0:01:05.2]} 41...
Kd7 {[%clk 0:01:07.9]} 42. Ng5 {[%clk 0:01:06.2]} 42... Ke7 {[%clk 0:01:03.7]}
43. Ne4 {[%clk 0:01:07.5]} 43... Nb6 {[%clk 0:01:02.7]} 44. Nd6 {[%clk
0:01:09.1]} 44... Nd5+ {[%clk 0:01:03.6]} 45. Kb2 {[%clk 0:01:07.5]} 45... Nd4
{[%clk 0:01:01.1]} 46. Kc1 {[%clk 0:01:04.6]} 46... Ne2+ {[%clk 0:00:58.7]} 47.
Kc2 {[%clk 0:01:05.6]} 47... Nxg3 {[%clk 0:00:58.9]} 48. Nxb5 {[%clk 0:01:06.4]}
48... Ne2 {[%clk 0:00:59.5]} 49. a4 {[%clk 0:01:06.1]} 49... Nexf4 {[%clk
0:01:00.5]} 50. a5 {[%clk 0:01:07.1]} 50... Kd7 {[%clk 0:01:00.7]} 51. Kb3
{[%clk 0:01:08.3]} 51... Kc6 {[%clk 0:01:00.5]} 52. Nd6 {[%clk 0:01:09.3]} 52...
Ng2 {[%clk 0:00:58.9]} 53. Kc4 {[%clk 0:01:05.9]} 53... Nxh4 {[%clk 0:00:57.2]}
54. Nb5 {[%clk 0:01:06.9]} 54... Nf3 {[%clk 0:00:55.6]} 0-1

[Event "*** Titled Tuesday Blitz"]
[Site "Chess.com"]
[Date "2018.10.02"]
[Round "1"]
[White "W_Amadeus"]
[Black "dmosesov"]
[Result "1-0"]
[WhiteElo "2619"]
[BlackElo "2323"]
[TimeControl "180+2"]
[EndTime "13:08:02 PDT"]
[Termination "W_Amadeus won by resignation"]

1. e4 {[%clk 0:03:01.9]} 1... c5 {[%clk 0:02:59.8]} 2. Nf3 {[%clk 0:03:02.8]}
2... e6 {[%clk 0:02:59.3]} 3. d4 {[%clk 0:03:03.5]} 3... cxd4 {[%clk 0:03:00.2]}
4. Nxd4 {[%clk 0:03:05.4]} 4... Nf6 {[%clk 0:02:53.8]} 5. Nc3 {[%clk 0:03:06.3]}
5... d6 {[%clk 0:02:55.3]} 6. g4 {[%clk 0:03:06.6]} 6... h6 {[%clk 0:02:56.2]}
7. h3 {[%clk 0:03:05.1]} 7... Nc6 {[%clk 0:02:56.2]} 8. Be3 {[%clk 0:03:05.4]}
8... a6 {[%clk 0:02:47.8]} 9. Qd2 {[%clk 0:03:01.3]} 9... Be7 {[%clk 0:02:44.6]}
10. O-O-O {[%clk 0:02:55.8]} 10... Qc7 {[%clk 0:02:41.3]} 11. f4 {[%clk
0:02:48.9]} 11... Bd7 {[%clk 0:02:10.9]} 12. Bg2 {[%clk 0:02:34.6]} 12... O-O-O
{[%clk 0:02:07.7]} 13. Kb1 {[%clk 0:02:26]} 13... Kb8 {[%clk 0:02:06.9]} 14. Qf2
{[%clk 0:02:22.7]} 14... Rc8 {[%clk 0:01:21.7]} 15. e5 {[%clk 0:01:36.7]} 15...
dxe5 {[%clk 0:01:07.8]} 16. Nxc6+ {[%clk 0:01:37.7]} 16... Bxc6 {[%clk
0:01:09.7]} 17. Bb6 {[%clk 0:01:38.5]} 17... Qxb6 {[%clk 0:00:52.9]} 18. Qxb6
{[%clk 0:01:40.4]} 18... Bxg2 {[%clk 0:00:51.9]} 19. fxe5 {[%clk 0:01:41.7]}
19... Bxh1 {[%clk 0:00:45.6]} 20. exf6 {[%clk 0:01:35.5]} 20... Bc5 {[%clk
0:00:46.3]} 21. Qa5 {[%clk 0:01:31.3]} 21... Bf3 {[%clk 0:00:43.6]} 22. fxg7
{[%clk 0:01:32.2]} 22... Rhg8 {[%clk 0:00:42.7]} 23. Rd3 {[%clk 0:01:32.5]}
23... Bg2 {[%clk 0:00:39.7]} 24. Na4 {[%clk 0:01:09.2]} 24... Ba7 {[%clk
0:00:36.6]} 25. Nb6 {[%clk 0:01:00.9]} 25... Bxb6 {[%clk 0:00:37.5]} 26. Qxb6
{[%clk 0:01:02.8]} 26... Rxg7 {[%clk 0:00:33.5]} 27. Rd8 {[%clk 0:00:39.9]}
27... Rg8 {[%clk 0:00:33.9]} 28. Rxc8+ {[%clk 0:00:36.2]} 28... Rxc8 {[%clk
0:00:35.8]} 29. Qf2 {[%clk 0:00:37.3]} 29... Rd8 {[%clk 0:00:22.5]} 30. Kc1
{[%clk 0:00:34.2]} 30... Bd5 {[%clk 0:00:21.3]} 31. Qxf7 {[%clk 0:00:30.7]}
31... Ka8 {[%clk 0:00:21.7]} 32. Qf6 {[%clk 0:00:30.3]} 32... Rc8 {[%clk
0:00:22.9]} 33. b3 {[%clk 0:00:29]} 33... Be4 {[%clk 0:00:22.2]} 34. c4 {[%clk
0:00:28.2]} 34... Bg2 {[%clk 0:00:22.2]} 35. Qxe6 {[%clk 0:00:27]} 35... Bxh3
{[%clk 0:00:22.5]} 36. Qxc8+ {[%clk 0:00:27.7]} 1-0

[Event "*** Titled Tuesday Blitz"]
[Site "Chess.com"]
[Date "2018.10.02"]
[Round "1"]
[White "tony15051987"]
[Black "GCamachoMartinez"]
[Result "1-0"]
[WhiteElo "2606"]
[BlackElo "2282"]
[TimeControl "180+2"]
[EndTime "13:08:03 PDT"]
[Termination "tony15051987 won by checkmate"]

1. d4 {[%clk 0:03:01.9]} 1... d5 {[%clk 0:03:00.2]} 2. c4 {[%clk 0:03:02.8]}
2... dxc4 {[%clk 0:03:01.2]} 3. e3 {[%clk 0:03:02.5]} 3... Nf6 {[%clk
0:03:00.8]} 4. Bxc4 {[%clk 0:03:02.7]} 4... e6 {[%clk 0:03:02.1]} 5. Nf3 {[%clk
0:03:03.4]} 5... c5 {[%clk 0:03:03.3]} 6. O-O {[%clk 0:03:04.1]} 6... a6 {[%clk
0:03:03.2]} 7. Nc3 {[%clk 0:03:01.4]} 7... cxd4 {[%clk 0:03:01.2]} 8. exd4
{[%clk 0:03:01.8]} 8... b5 {[%clk 0:02:58.3]} 9. Bd3 {[%clk 0:03:02.9]} 9... Bb7
{[%clk 0:02:59.3]} 10. Bg5 {[%clk 0:03:03.6]} 10... Be7 {[%clk 0:02:59.5]} 11.
Qe2 {[%clk 0:03:03.9]} 11... O-O {[%clk 0:02:58]} 12. Rad1 {[%clk 0:03:04.8]}
12... Nbd7 {[%clk 0:02:58.1]} 13. Ne5 {[%clk 0:03:02.8]} 13... Rc8 {[%clk
0:02:41.4]} 14. Bb1 {[%clk 0:03:00.7]} 14... Nb6 {[%clk 0:02:19.8]} 15. a3
{[%clk 0:02:56.4]} 15... Nbd5 {[%clk 0:02:16.6]} 16. Rd3 {[%clk 0:02:27.6]}
16... Nxc3 {[%clk 0:02:03.5]} 17. bxc3 {[%clk 0:02:28]} 17... g6 {[%clk
0:01:50.7]} 18. Rh3 {[%clk 0:02:21.4]} 18... Re8 {[%clk 0:01:38.1]} 19. Bxf6
{[%clk 0:01:45.8]} 19... Bxf6 {[%clk 0:01:37.3]} 20. Nxf7 {[%clk 0:01:46.9]}
20... Kxf7 {[%clk 0:01:18.3]} 21. Rxh7+ {[%clk 0:01:47.4]} 21... Bg7 {[%clk
0:01:18.9]} 22. Bxg6+ {[%clk 0:01:37.3]} 22... Kf8 {[%clk 0:00:35.2]} 23. Bxe8
{[%clk 0:01:03.7]} 23... Qxe8 {[%clk 0:00:35.5]} 24. Qg4 {[%clk 0:01:01.1]}
24... Qf7 {[%clk 0:00:36.3]} 25. h4 {[%clk 0:00:52.3]} 25... Bd5 {[%clk
0:00:36.4]} 26. h5 {[%clk 0:00:51]} 26... Kg8 {[%clk 0:00:37.3]} 27. Rh6 {[%clk
0:00:41.7]} 27... Qf5 {[%clk 0:00:34.9]} 28. Qxf5 {[%clk 0:00:38.1]} 28... exf5
{[%clk 0:00:36.1]} 29. Rxa6 {[%clk 0:00:34.4]} 29... Rxc3 {[%clk 0:00:35.5]} 30.
Re1 {[%clk 0:00:33.8]} 30... Rc8 {[%clk 0:00:33.8]} 31. Rd6 {[%clk 0:00:28.5]}
31... Bc4 {[%clk 0:00:32.9]} 32. h6 {[%clk 0:00:26.8]} 32... Bf8 {[%clk
0:00:33.7]} 33. Rd7 {[%clk 0:00:26.5]} 33... Bxa3 {[%clk 0:00:31.4]} 34. Re3
{[%clk 0:00:18.2]} 34... Bf8 {[%clk 0:00:29.7]} 35. Rg3+ {[%clk 0:00:15.7]}
35... Kh8 {[%clk 0:00:30.8]} 36. h7 {[%clk 0:00:16.6]} 36... b4 {[%clk
0:00:30.7]} 37. d5 {[%clk 0:00:17.7]} 37... b3 {[%clk 0:00:31.4]} 38. Rg8#
{[%clk 0:00:17.8]} 1-0

[Event "*** Titled Tuesday Blitz"]
[Site "Chess.com"]
[Date "2018.10.02"]
[Round "1"]
[White "albi1999"]
[Black "Fighterman91"]
[Result "0-1"]
[WhiteElo "2410"]
[BlackElo "2733"]
[TimeControl "180+2"]
[EndTime "13:08:09 PDT"]
[Termination "Fighterman91 won by resignation"]

1. d4 {[%clk 0:03:01.9]} 1... Nf6 {[%clk 0:03:00.4]} 2. Nf3 {[%clk 0:03:01.4]}
2... g6 {[%clk 0:02:55.2]} 3. g3 {[%clk 0:03:01.6]} 3... Bg7 {[%clk 0:02:56.3]}
4. Bg2 {[%clk 0:03:02.9]} 4... O-O {[%clk 0:02:58.2]} 5. O-O {[%clk 0:03:03.9]}
5... d5 {[%clk 0:02:59.5]} 6. c4 {[%clk 0:03:05]} 6... dxc4 {[%clk 0:02:59.7]}
7. Ne5 {[%clk 0:03:05.2]} 7... Nc6 {[%clk 0:02:58.3]} 8. Nxc6 {[%clk 0:02:53.6]}
8... bxc6 {[%clk 0:02:59.3]} 9. Na3 {[%clk 0:02:55.1]} 9... Be6 {[%clk
0:02:43.4]} 10. Bf4 {[%clk 0:02:50.8]} 10... Bd5 {[%clk 0:02:09.7]} 11. f3
{[%clk 0:02:29.8]} 11... Be6 {[%clk 0:01:52.2]} 12. e4 {[%clk 0:02:19.1]} 12...
Nd7 {[%clk 0:01:49.5]} 13. Qd2 {[%clk 0:02:14.3]} 13... Nb6 {[%clk 0:01:43.9]}
14. Rfd1 {[%clk 0:02:14.2]} 14... a5 {[%clk 0:01:44.3]} 15. Bh6 {[%clk
0:02:13.1]} 15... Qd6 {[%clk 0:01:30.4]} 16. Bxg7 {[%clk 0:02:11.7]} 16... Kxg7
{[%clk 0:01:32.3]} 17. Rac1 {[%clk 0:02:10.4]} 17... Qb4 {[%clk 0:01:30.2]} 18.
Qe2 {[%clk 0:01:53.6]} 18... Rfd8 {[%clk 0:01:22.9]} 19. f4 {[%clk 0:01:52]}
19... c3 {[%clk 0:00:58]} 20. Rxc3 {[%clk 0:01:23.7]} 20... Rxd4 {[%clk
0:00:59]} 21. Rdc1 {[%clk 0:01:18.8]} 21... Na4 {[%clk 0:00:24.4]} 22. Rxc6
{[%clk 0:01:09.8]} 22... Rd2 {[%clk 0:00:25.4]} 23. Qe3 {[%clk 0:01:06.8]} 23...
Qxb2 {[%clk 0:00:24.5]} 24. R6c2 {[%clk 0:00:58.5]} 24... Rxc2 {[%clk
0:00:25.2]} 25. Rxc2 {[%clk 0:00:57.7]} 25... Qa1+ {[%clk 0:00:13.5]} 26. Rc1
{[%clk 0:00:58.7]} 26... Qxa2 {[%clk 0:00:13.2]} 27. Qd4+ {[%clk 0:00:59.7]}
27... Kg8 {[%clk 0:00:09.2]} 28. Qxa4 {[%clk 0:01:00.9]} 28... Rb8 {[%clk
0:00:06]} 29. f5 {[%clk 0:00:49.2]} 29... Rb2 {[%clk 0:00:06.5]} 30. Bh1 {[%clk
0:00:38.6]} 30... Rxh2 {[%clk 0:00:06.8]} 31. Nc2 {[%clk 0:00:32.4]} 31... Qxa4
{[%clk 0:00:06.9]} 32. fxe6 {[%clk 0:00:32.5]} 32... Rxh1+ {[%clk 0:00:07.8]}
33. Kxh1 {[%clk 0:00:32.7]} 33... Qxe4+ {[%clk 0:00:09.6]} 34. Kh2 {[%clk
0:00:33.4]} 34... Qxe6 {[%clk 0:00:11.1]} 35. Re1 {[%clk 0:00:33.4]} 35... Qa2
{[%clk 0:00:11.6]} 36. Re2 {[%clk 0:00:34.5]} 36... Qc4 {[%clk 0:00:13.3]} 37.
Rf2 {[%clk 0:00:34.4]} 37... a4 {[%clk 0:00:14.6]} 0-1